{"text_format":"1","workbook":"xlsx","n_sheets":9,"sheets":["Dataset","LOG Function","LOG10 Function ","LN Function","Function Library","Insert Function","VBA Code","Example of Application","Common Errors"],"not_rendered":{"charts":0,"images":0,"macros":1,"external_links":0,"defined_names":0,"comments":0,"pivot_tables":0},"unopened":[],"bounds":{"document_bytes":16777216,"sheet_cells":100000,"rows_first":2000,"rows_last":500,"rows_between":2000,"halvings":0,"cell_chars":16384,"cell_head_chars":4096},"cells_cut":0,"cells_raw":0,"read":"whole","date_system":"1900"}

{"sheet":"Dataset","index":0,"n_rows":9,"n_cols":3,"rows_kept":9,"cut":false,"hidden":false,"merged":[[1,1,1,2]]}
[]
[null,"Dataset"]
[]
[null,"Number","Base"]
[null,100,10]
[null,125,5]
[null,64,4]
[null,16,2.14]
[null,625,5]

{"sheet":"LOG Function","index":1,"n_rows":9,"n_cols":11,"rows_kept":9,"cut":false,"hidden":false,"merged":[[1,1,1,3],[1,8,1,10]]}
[]
[null,"Using LOG Function",null,null,null,null,null,null,"Do It Yourself"]
[]
[null,"Number","Base","Logarithm",null,null,null,null,"Number","Base","Logarithm"]
[null,100,10,{"$f":"LOG(B5,C5)","v":2},null,null,null,null,100,10]
[null,125,5,{"$f":"LOG(B6,C6)","v":3.0000000000000004},null,null,null,null,125,5]
[null,64,4,3,null,null,null,null,64,4]
[null,16,2.14,3.644279021575096,null,null,null,null,16,2.14]
[null,625,5,4,null,null,null,null,625,5]

{"sheet":"LOG10 Function ","index":2,"n_rows":9,"n_cols":9,"rows_kept":9,"cut":false,"hidden":false,"merged":[[1,1,1,2],[1,7,1,8]]}
[]
[null,"Applying LOG10 Function",null,null,null,null,null,"Do It Yourself"]
[]
[null,"Number","Logarithm",null,null,null,null,"Number","Logarithm"]
[null,100,{"$f":"LOG10(B5)","v":2},null,null,null,null,100]
[null,125,{"$f":"LOG10(B6)","v":2.0969100130080562},null,null,null,null,125]
[null,64,1.8061799739838871,null,null,null,null,64]
[null,16,1.2041199826559248,null,null,null,null,16]
[null,625,2.7958800173440754,null,null,null,null,625]

{"sheet":"LN Function","index":3,"n_rows":9,"n_cols":10,"rows_kept":9,"cut":false,"hidden":false,"merged":[[1,1,1,2],[1,8,1,9]]}
[]
[null,"Implementing LN Function",null,null,null,null,null,null,"Do It Yourself"]
[]
[null,"Number ","Logarithm",null,null,null,null,null,"Number ","Logarithm"]
[null,100,{"$f":"LN(B5)","v":4.6051701859880918},null,null,null,null,null,100]
[null,125,{"$f":"LN(B6)","v":4.8283137373023015},null,null,null,null,null,125]
[null,64,4.1588830833596715,null,null,null,null,null,64]
[null,16,2.7725887222397811,null,null,null,null,null,16]
[null,625,6.4377516497364011,null,null,null,null,null,625]

{"sheet":"Function Library","index":4,"n_rows":9,"n_cols":11,"rows_kept":9,"cut":false,"hidden":false,"merged":[[1,1,1,3],[1,8,1,10]]}
[]
[null,"Exploring Function Library",null,null,null,null,null,null,"Do It Yourself"]
[]
[null,"Number","Base","Logarithm",null,null,null,null,"Number","Base","Logarithm"]
[null,100,10,{"$f":"LOG(B5,C5)","v":2},null,null,null,null,100,10]
[null,125,5,{"$f":"LOG(B6,C6)","v":3.0000000000000004},null,null,null,null,125,5]
[null,64,4,3,null,null,null,null,64,4]
[null,16,2.14,3.644279021575096,null,null,null,null,16,2.14]
[null,625,5,4,null,null,null,null,625,5]

{"sheet":"Insert Function","index":5,"n_rows":9,"n_cols":10,"rows_kept":9,"cut":false,"hidden":false,"merged":[[1,1,1,3],[1,7,1,9]]}
[]
[null,"Availing Insert Function",null,null,null,null,null,"Do It Yourself"]
[]
[null,"Number","Base","Logarithm",null,null,null,"Number","Base","Logarithm"]
[null,100,10,{"$f":"LOG(B5,C5)","v":2},null,null,null,100,10]
[null,125,5,{"$f":"LOG(B6,C6)","v":3.0000000000000004},null,null,null,125,5]
[null,64,4,3,null,null,null,64,4]
[null,16,2.14,3.644279021575096,null,null,null,16,2.14]
[null,625,5,4,null,null,null,625,5]

{"sheet":"VBA Code","index":6,"n_rows":9,"n_cols":3,"rows_kept":9,"cut":false,"hidden":false,"merged":[[1,1,1,2]]}
[]
[null,"Employing VBA Code"]
[]
[null,"Number","Base"]
[null,100,10]
[null,125,5]
[null,64,4]
[null,16,2.14]
[null,625,5]

{"sheet":"Example of Application","index":7,"n_rows":10,"n_cols":12,"rows_kept":10,"cut":false,"hidden":false,"merged":[[1,1,1,4],[1,8,1,11]]}
[]
[null,"Example",null,null,null,null,null,null,"Do It Yourself"]
[]
[null,"Solution","[H+]  (μ mol/liter)","pH ","Statement",null,null,null,"Solution","[H+]  (μ mol/liter)","pH ","Statement"]
[null,"A",100,{"$f":"-(LOG(C5*POWER(10,-6),10))","v":4},{"$f":"IF(D5<7,\"The solution is Acidic\",IF(D5>7,\"The solution is Alkaline\",\"The solution is Neutral\"))","v":"The solution is Acidic"},null,null,null,"A",100]
[null,"B",0.02,{"$f":"-(LOG(C6*POWER(10,-6),10))","v":7.6989700043360179},{"$f":"IF(D6<7,\"The solution is Acidic\",IF(D6>7,\"The solution is Alkaline\",\"The solution is Neutral\"))","v":"The solution is Alkaline"},null,null,null,"B",0.02]
[null,"C",2.5,5.6020599913279616,"The solution is Acidic",null,null,null,"C",2.5]
[null,"D",0.1,7,"The solution is Neutral",null,null,null,"D",0.1]
[null,"E",0.05,7.3010299956639804,"The solution is Alkaline",null,null,null,"E",0.05]
[null,"F",10,5,"The solution is Acidic",null,null,null,"F",10]

{"sheet":"Common Errors","index":8,"n_rows":19,"n_cols":4,"rows_kept":19,"cut":false,"hidden":false,"merged":[[1,1,1,3],[6,1,6,3],[12,1,12,3]]}
[]
[null,"#DIV/0! Error"]
[]
[null,"Number","Base","Logarithm"]
[null,100,1,{"$f":"LOG(B5,C5)","v":{"$error":"#DIV/0!"}}]
[]
[null,"#VALUE! Error"]
[]
[null,"Number","Base","Logarithm"]
[null,100,"xyz",{"$f":"LOG(B10,C10)","v":{"$error":"#VALUE!"}}]
[null,"xyz",10,{"$f":"LOG(B11,C11)","v":{"$error":"#VALUE!"}}]
[]
[null,"#NUM! Error"]
[]
[null,"Number","Base","Logarithm"]
[null,100,0,{"$f":"LOG(B16,C16)","v":{"$error":"#NUM!"}}]
[null,100,-1,{"$f":"LOG(B17,C17)","v":{"$error":"#NUM!"}}]
[null,0,4,{"$f":"LOG(B18,C18)","v":{"$error":"#NUM!"}}]
[null,-1,2,{"$f":"LOG(B19,C19)","v":{"$error":"#NUM!"}}]